fUST/lending_fUST_20251222
["ID","MTS","AMOUNT","RATE_DAILY","PERIOD"]
[399417899,1766337036939,-500.0,0.00013698,2]
[399417900,1766337036949,-500.0,0.00013698,2]
[399417901,1766337036958,-500.0,0.00013698,2]
[399417902,1766337036968,-500.0,0.00013698,2]
[399417903,1766337036977,-500.0,0.00013698,2]
[399417904,1766337036986,-500.0,0.00013698,2]
[399417905,1766337036995,-500.0,0.00013698,2]
[399417906,1766337037005,-500.0,0.00013698,2]
[399417907,1766337037014,-500.0,0.00013698,2]
[399417908,1766337037024,-500.0,0.00013698,2]
[399417909,1766337037033,-500.0,0.00013698,2]
[399417910,1766337037043,-500.0,0.00013698,2]
[399417911,1766337037052,-500.0,0.00013698,2]
[399417912,1766337037061,-433.20682065,0.00013698,2]
[399417913,1766337037071,-500.0,0.00013698,2]
[399417914,1766337037080,-500.0,0.00013698,2]
[399417915,1766337037090,-339.98,0.00013698,2]
[399417916,1766337037099,-500.0,0.00013698,2]
[399417917,1766337037108,-500.0,0.00013698,2]
[399417918,1766337037118,-500.0,0.00013698,2]
[399417919,1766337037128,-500.0,0.00013698,2]
[399417920,1766337037137,-500.0,0.00013698,2]
[399417921,1766337037147,-502.90653781,0.00013698,2]
[399417922,1766337037156,-500.0,0.00013698,2]
[399417923,1766337037166,-500.0,0.00013698,2]
[399417924,1766337037175,-500.0,0.00013698,2]
[399417925,1766337037185,-558.48,0.00013698,2]
[399417926,1766337037194,-500.0,0.00013698,2]
[399417927,1766337037203,-500.0,0.00013698,2]
[399417928,1766337037213,-500.0,0.00013698,2]
[399417929,1766337037222,-229.66,0.00013698,2]
[399417930,1766337037231,-219.88983356,0.00013698,2]
[399417931,1766337037241,-500.0,0.00013698,2]
[399417932,1766337037250,-500.0,0.00013698,2]
[399417933,1766337037259,-528.9802192,0.00013698,2]
[399417934,1766337037269,-502.58625511,0.00013698,2]
[399417935,1766337037279,-500.0,0.00013698,2]
[399417936,1766337037288,-500.0,0.00013698,2]
[399417937,1766337037298,-500.0,0.00013698,2]
[399417938,1766337037307,-500.0,0.00013698,2]
[399417939,1766337037317,-500.0,0.00013698,2]
[399417940,1766337037330,-500.0,0.00013698,2]
[399417941,1766337037340,-500.0,0.00013698,2]
[399417942,1766337037349,-500.0,0.00013698,2]
[399417943,1766337037359,-604.22,0.00013698,2]
[399417944,1766337037369,-362.84,0.00013698,2]
[399417945,1766337037379,-500.0,0.00013699,2]
[399417946,1766337037388,-500.0,0.00013699,2]
[399417947,1766337037397,-500.0,0.00013699,2]
[399417948,1766337037407,-500.0,0.00013699,2]
[399417949,1766337037417,-500.0,0.00013699,2]
[399417950,1766337037427,-500.0,0.00013699,2]
[399417951,1766337037436,-500.0,0.00013699,2]
[399417952,1766337037446,-500.0,0.00013699,2]
[399417953,1766337037455,-500.0,0.00013699,2]
[399417954,1766337037464,-376.0,0.00013699,2]
[399417955,1766337037474,-500.0,0.00013699,2]
[399417956,1766337037484,-500.0,0.00013699,2]
[399417957,1766337037494,-500.0,0.00013699,2]
[399417958,1766337037503,-500.0,0.00013699,2]
[399417959,1766337037513,-500.0,0.00013699,2]
[399417960,1766337037522,-500.0,0.00013699,2]
[399417961,1766337037532,-500.0,0.00013699,2]
[399417962,1766337037541,-360.25249721,0.00013699,2]
[399417963,1766337037551,-5182.6582,0.00013699,2]
[399417964,1766337037561,-4272.4064615,0.00013699,2]
[399417965,1766337037571,-12548.4108941,0.00013699,2]
[399417966,1766337037580,-228.76291,0.00013699,2]
[399417967,1766337037589,-228.76291,0.00013699,2]
[399417968,1766337037599,-228.76291,0.00013699,2]
[399417969,1766337037608,-228.76291,0.00013699,2]
[399417970,1766337037617,-228.76291,0.00013699,2]
[399417971,1766337037626,-228.76291,0.00013699,2]
[399417972,1766337037635,-228.762905,0.00013699,2]
[399417973,1766337037644,-1030.976741,0.00013699,2]
[399417974,1766337037654,-1000.0,0.00013699,2]
[399417975,1766337037670,-158.222976,0.00013699,2]
[399417976,1766337037685,-158.222976,0.00013699,2]
[399417977,1766337037694,-158.222976,0.00013699,2]
[399417978,1766337037703,-158.222976,0.00013699,2]
[399417979,1766337037713,-158.222976,0.00013699,2]
[399417980,1766337037722,-158.222976,0.00013699,2]
[399417981,1766337037731,-158.222976,0.00013699,2]
[399417982,1766337037741,-158.222976,0.00013699,2]
[399417983,1766337037751,-158.222976,0.00013699,2]
[399417984,1766337037760,-158.222976,0.00013699,2]
[399417985,1766337037773,-158.222976,0.00013699,2]
[399417986,1766337037783,-158.222976,0.00013699,2]
[399417987,1766337037793,-158.222976,0.00013699,2]
[399417988,1766337037802,-158.222976,0.00013699,2]
[399417989,1766337037813,-158.222976,0.00013699,2]
[399417990,1766337037825,-158.222976,0.00013699,2]
[399417991,1766337037834,-158.222976,0.00013699,2]
[399417992,1766337037843,-158.222976,0.00013699,2]
[399417993,1766337037854,-158.222976,0.00013699,2]
[399417994,1766337037863,-158.22297,0.00013699,2]
[399417995,1766337037872,-7693.71379779,0.00013699,2]
[399417996,1766337037883,-500.0,0.00013699,2]
[399417997,1766337037893,-500.0,0.00013699,2]
[399417998,1766337037903,-500.0,0.00013699,2]
[399417999,1766337037912,-500.0,0.00013699,2]
[399418000,1766337037921,-500.0,0.00013699,2]
[399418001,1766337037929,-500.0,0.00013699,2]
[399418002,1766337037938,-211.08001947,0.00013699,2]
[399418003,1766337037948,-540.07248979,0.00013699,2]
[399418004,1766337037958,-500.0,0.00013699,2]
[399418005,1766337037969,-186.9683005,0.00013699,2]
[399418006,1766337037979,-500.0,0.00013699,2]
[399418007,1766337037990,-500.0,0.00013699,2]
[399418008,1766337038000,-500.0,0.00013699,2]
[399418009,1766337038010,-500.0,0.00013699,2]
[399418010,1766337038022,-500.0,0.00013699,2]
[399418012,1766337038031,-500.0,0.00013699,2]
[399418013,1766337038041,-185.40408976,0.00013699,2]
[399418015,1766337038051,-500.0,0.00013699,2]
[399418016,1766337038060,-500.0,0.00013699,2]
[399418017,1766337038069,-260.0,0.00013699,2]
[399418018,1766337038079,-500.0,0.00013699,2]
[399418019,1766337038089,-500.0,0.00013699,2]
[399418020,1766337038099,-500.0,0.00013699,2]
[399418021,1766337038109,-500.0,0.00013699,2]
[399418022,1766337038119,-500.0,0.00013699,2]
[399418023,1766337038128,-500.0,0.00013699,2]
[399418024,1766337038139,-377.38540046,0.00013699,2]
[399418025,1766337038148,-500.0,0.00013699,2]
[399418026,1766337038157,-500.0,0.00013699,2]
[399418027,1766337038167,-500.0,0.00013699,2]
[399418028,1766337038178,-500.0,0.00013699,2]
[399418029,1766337038187,-500.0,0.00013699,2]
[399418030,1766337038197,-500.0,0.00013699,2]
[399418031,1766337038207,-500.0,0.00013699,2]
[399418032,1766337038216,-500.0,0.00013699,2]
[399418034,1766337038226,-500.0,0.00013699,2]
[399418036,1766337038237,-500.0,0.00013699,2]
[399418037,1766337038247,-500.0,0.00013699,2]
[399418038,1766337038256,-500.30355412,0.00013699,2]
[399418039,1766337038266,-629.34461674,0.00013699,2]
[399418040,1766337038276,-500.0,0.00013699,2]
[399418041,1766337038286,-500.0,0.00013699,2]
[399418042,1766337038295,-500.55756047,0.00013699,2]
[399418043,1766337038304,-500.0,0.00013699,2]
[399418044,1766337038313,-2000.0,0.00013699,7]
[399418045,1766337038323,-500.0,0.00013699,2]
[399418047,1766337038332,-500.0,0.00013699,2]
[399418048,1766337038342,-500.0,0.00013699,2]
[399418049,1766337038351,-500.0,0.00013699,2]
[399418050,1766337038361,-500.0,0.00013699,2]
[399418051,1766337038371,-500.0,0.00013699,2]
[399418053,1766337038380,-500.0,0.00013699,2]
[399418054,1766337038390,-421.53283848,0.00013699,2]
[399418055,1766337038400,-500.0,0.00013699,2]
[399418056,1766337038409,-500.0,0.00013699,2]
[399418057,1766337038419,-500.0,0.00013699,2]
[399418058,1766337038429,-500.0,0.00013699,2]
[399418060,1766337038438,-500.0,0.00013699,2]
[399418062,1766337038448,-500.0,0.00013699,2]
[399418063,1766337038458,-500.0,0.00013699,2]
[399418065,1766337038468,-500.0,0.00013699,2]
[399418067,1766337038477,-500.0,0.00013699,2]
[399418068,1766337038487,-500.0,0.00013699,2]
[399418070,1766337038496,-500.0,0.00013699,2]
[399418072,1766337038505,-500.0,0.00013699,2]
[399418074,1766337038515,-500.0,0.00013699,2]
[399418075,1766337038524,-500.0,0.00013699,2]
[399418077,1766337038533,-598.27415341,0.00013699,2]
[399418079,1766337038544,-500.0,0.00013699,2]
[399418081,1766337038555,-500.0,0.00013699,2]
[399418082,1766337038565,-160.0,0.00013699,2]
[399418084,1766337038575,-351.98380288,0.00013729,7]
[399418086,1766337038584,-1000.0,0.00013821,2]
[399418088,1766337038594,-175.59637159,0.00013821,2]
[399418089,1766337038603,-415.08400314,0.00013821,2]
[399418091,1766337038612,-314.54726531,0.00013821,2]
[399418093,1766337038622,-584.92270314,0.00013821,2]
[399418094,1766337038631,-1000.0,0.00013821,2]
[399418096,1766337038640,-1000.0,0.00013821,2]
[399418098,1766337038651,-1000.0,0.00013821,2]
[399418100,1766337038660,-1000.0,0.00013821,2]
[399418102,1766337038669,-1000.0,0.00013821,2]
[399418103,1766337038678,-1000.0,0.00013821,2]
[399418105,1766337038688,-1000.0,0.00013821,2]
[399418107,1766337038697,-1000.0,0.00013821,2]
[399418109,1766337038706,-1000.0,0.00013821,2]
[399418110,1766337038715,-1000.0,0.00013821,2]
[399418112,1766337038725,-1000.0,0.00013821,2]
[399418115,1766337038734,-1000.0,0.00013821,2]
[399418118,1766337038744,-1000.0,0.00013821,2]
[399418119,1766337038754,-1000.0,0.00013821,2]
[399418121,1766337038764,-1000.0,0.00013821,2]
[399418123,1766337038778,-1000.0,0.00013821,2]
[399418125,1766337038788,-1000.0,0.00013821,2]
[399418126,1766337038798,-1000.0,0.00013821,2]
[399418128,1766337038808,-1000.0,0.00013821,2]
[399418130,1766337038819,-1000.0,0.00013821,2]
[399418132,1766337038829,-1000.0,0.00013821,2]
[399418133,1766337038839,-503.35723734,0.00013821,2]
[399418135,1766337038851,-1000.0,0.00013821,2]
[399418137,1766337038861,-1000.0,0.00013821,2]
[399418138,1766337038871,-1000.0,0.00013821,2]
[399418140,1766337038880,-1000.0,0.00013821,2]
[399418142,1766337038889,-1000.0,0.00013821,2]
[399418144,1766337038899,-210.29022267,0.00013821,2]
[399418145,1766337038909,-549.90356021,0.00013821,2]
[399418146,1766337038918,-1000.0,0.00013821,2]
[399418147,1766337038928,-1000.0,0.00013821,2]
[399418148,1766337038937,-1000.0,0.00013821,2]
[399418149,1766337038947,-1000.0,0.00013821,2]
[399418150,1766337038956,-1000.0,0.00013821,2]
[399418151,1766337038965,-1000.0,0.00013821,2]
[399418152,1766337038974,-896.02895101,0.00013821,2]
[399418153,1766337038984,-1000.0,0.00013821,2]
[399418154,1766337038993,-1000.0,0.00013821,2]
[399418155,1766337039002,-1000.0,0.00013821,2]
[399418156,1766337039011,-1000.0,0.00013821,2]
[399418157,1766337039020,-303.9762589,0.00013863,2]
[399418158,1766337039030,-600.0,0.00014221,2]
[399418159,1766337039039,-201.45731477,0.00014246,2]
[399418160,1766337039049,-1000.0,0.00014247,2]
[399418161,1766337039057,-1000.0,0.00014247,2]
[399418162,1766337039072,-520.9365729,0.00014247,2]
[399418163,1766337039086,-1000.0,0.00014247,2]
[399418164,1766337039096,-1000.0,0.00014247,2]
[399418165,1766337039106,-1149.18058201,0.00014247,2]
[399418166,1766337039116,-732.61988605,0.00014247,2]
[399418167,1766337039125,-500.41680588,0.00014247,2]
[399418168,1766337039136,-1000.0,0.00014247,2]
[399418169,1766337039146,-1000.0,0.00014247,2]
[399418170,1766337039155,-1000.0,0.00014247,2]
[399418171,1766337039164,-1000.0,0.00014247,2]
[399418172,1766337039174,-1000.0,0.00014247,2]
[399418173,1766337039184,-1000.0,0.00014247,2]
[399418174,1766337039193,-1000.0,0.00014247,2]
[399418175,1766337039202,-1000.0,0.00014247,2]
[399418176,1766337039212,-1000.0,0.00014247,2]
[399418177,1766337039221,-400.44553674,0.00014247,2]
[399418178,1766337039230,-1000.0,0.00014247,2]
[399418179,1766337039240,-1000.0,0.00014247,2]
[399418180,1766337039249,-1000.35964076,0.00014247,2]
[399418181,1766337039258,-1000.0,0.00014247,2]
[399418182,1766337039267,-1000.0,0.00014247,2]
[399418183,1766337039277,-1000.0,0.00014247,2]
[399418184,1766337039286,-1000.0,0.00014247,2]
[399418185,1766337039295,-1001.33145074,0.00014247,2]
[399418186,1766337039305,-1000.0,0.00014247,2]
[399418187,1766337039314,-1000.0,0.00014247,2]
[399418188,1766337039323,-501.06742431,0.00014247,2]
[399418189,1766337039332,-163.33345373,0.00014247,2]
[399418191,1766337039342,-1000.0,0.00014247,2]
[399418192,1766337039351,-1000.0,0.00014247,2]
[399418193,1766337039360,-1000.0,0.00014247,2]
[399418194,1766337039370,-1006.60858114,0.00014247,2]
[399418196,1766337039380,-1000.0,0.00014247,2]
[399418197,1766337039389,-1000.0,0.00014247,2]
[399418199,1766337039399,-1000.0,0.00014247,2]
[399418201,1766337039408,-1109.98075944,0.00014247,2]
[399418203,1766337039418,-1000.0,0.00014247,2]
[399418205,1766337039428,-1000.83389539,0.00014247,2]
[399418207,1766337039438,-550.29187424,0.00014247,2]
[399418210,1766337039448,-439.26671029,0.00014247,2]
[399418212,1766337039458,-1000.0,0.00014247,2]
[399418214,1766337039467,-502.03253341,0.00014247,2]
[399418216,1766337039477,-1000.0,0.00014247,2]
[399418218,1766337039489,-334.66015205,0.00014247,2]
[399418220,1766337039499,-467.43248338,0.00014247,2]
[399418222,1766337039508,-1000.0,0.00014247,2]
[399418224,1766337039518,-1000.0,0.00014247,2]
[399418226,1766337039528,-501.90291112,0.00014247,2]
[399418228,1766337039538,-1000.0,0.00014247,2]
[399418230,1766337039547,-1000.0,0.00014247,2]
[399418232,1766337039558,-1000.0,0.00014247,2]
[399418234,1766337039567,-1000.0,0.00014247,2]
[399418236,1766337039577,-1000.0,0.00014247,2]
[399418237,1766337039585,-1000.0,0.00014247,2]
[399418240,1766337039595,-1000.0,0.00014247,2]
[399418241,1766337039604,-1000.0,0.00014247,2]
[399418244,1766337039614,-260.0,0.00014247,2]
[399418246,1766337039623,-1840.88795438,0.00014296,2]
[399418248,1766337039633,-1000.0,0.00014298,2]
[399418250,1766337039644,-244.0,0.00014298,2]
[399418252,1766337039653,-352.62824996,0.00014334,2]
[399418254,1766337039662,-200.0,0.00014367,2]
[399418256,1766337039672,-200.0,0.00014367,2]
[399418258,1766337039681,-1500.0,0.00014368,2]
[399418260,1766337039690,-1030.41147332,0.00014368,2]
[399418262,1766337039699,-1500.0,0.00014368,2]
[399418264,1766337039708,-1500.0,0.00014368,2]
[399418266,1766337039718,-1500.0,0.00014368,2]
[399418268,1766337039727,-1636.47290731,0.00014368,2]
[399418270,1766337039736,-1500.0,0.00014368,2]
[399418272,1766337039747,-1500.0,0.00014368,2]
[399418274,1766337039756,-1389.6955786,0.00014368,2]
[399418276,1766337039768,-1500.0,0.00014368,2]
[399418278,1766337039778,-1500.0,0.00014368,2]
[399418280,1766337039787,-1500.0,0.00014368,2]
[399418282,1766337039797,-1500.0,0.00014368,2]
[399418284,1766337039807,-1500.0,0.00014368,2]
[399418286,1766337039816,-1500.0,0.00014368,2]
[399418288,1766337039825,-1500.0,0.00014368,2]
[399418290,1766337039835,-1500.0,0.00014368,2]
[399418292,1766337039846,-1500.0,0.00014368,2]
[399418294,1766337039856,-1500.0,0.00014368,2]
[399418296,1766337039865,-1500.0,0.00014368,2]
[399418298,1766337039874,-1500.0,0.00014368,2]
[399418301,1766337039883,-1500.0,0.00014368,2]
[399418303,1766337039892,-1500.0,0.00014368,2]
[399418305,1766337039902,-1500.0,0.00014368,2]
[399418307,1766337039911,-1500.0,0.00014368,2]
[399418309,1766337039922,-1500.0,0.00014368,2]
[399418311,1766337039931,-1500.0,0.00014368,2]
[399418313,1766337039943,-1500.0,0.00014368,2]
[399418315,1766337039954,-1500.0,0.00014368,2]
[399418317,1766337039963,-1500.0,0.00014368,2]
[399418319,1766337039973,-1500.0,0.00014368,2]
[399418321,1766337039983,-1500.0,0.00014368,2]
[399418323,1766337039992,-1500.0,0.00014368,2]
[399418325,1766337040001,-1500.0,0.00014368,2]
[399418327,1766337040010,-324.33877311,0.00014368,2]
[399418356,1766337040290,-1500.0,0.00014368,2]
[399418359,1766337040300,-971.90087353,0.00014368,2]
[399418361,1766337040310,-167.64151621,0.00014446,2]
[399418363,1766337040319,-2000.0,0.00014514,7]
[399418367,1766337040329,-151.0,0.000146,2]
[399418371,1766337040339,-36030.95290568,0.00014768,2]
[399418457,1766337040843,-449.07731312,0.00014768,2]
[399418460,1766337040862,-3730.0,0.00014768,2]
[399418476,1766337041003,150.0,8.033e-05,2]
[399418483,1766337041059,178.53,8.416e-05,2]
[399418494,1766337041156,-267.79,8.798e-05,2]
[399418496,1766337041166,-357.05,9.181e-05,2]
[399418498,1766337041176,-446.32,9.564e-05,2]
[399418500,1766337041186,-32.4697811,0.00014768,2]
[399418503,1766337041195,-836.66963722,0.00014768,2]
[399418505,1766337041207,-63.33036278,0.00014768,2]
[399418507,1766337041216,-233.87782514,0.00014795,2]
[399418509,1766337041228,-1060.35548817,0.00014795,2]
[399418511,1766337041239,-205.76668669,0.00014795,2]
[399418513,1766337041249,-1004.88356841,0.00014795,2]
[399418515,1766337041259,-498.64672858,0.00014795,2]
[399418517,1766337041269,-1500.0,0.00014795,2]
[399418519,1766337041279,-1515.36290525,0.00014795,2]
[399418521,1766337041288,-1500.0,0.00014795,2]
[399418523,1766337041297,-1284.38571266,0.00014795,2]
[399418525,1766337041307,-1500.0,0.00014795,2]
[399418527,1766337041316,-266.77896459,0.00014795,2]
[399418548,1766337041506,-535.58,9.946e-05,2]
[399418551,1766337041516,-624.85,0.00010329,2]
[399418553,1766337041526,-714.11,0.00010711,2]
[399418555,1766337041536,-361.1350964,0.00011094,2]
[399418769,1766337043710,-442.2349036,0.00011094,2]
[399418771,1766337043720,-892.64,0.00011476,2]
[399418773,1766337043729,-1233.22103541,0.00014795,2]
[399418775,1766337043739,-1500.0,0.00014795,2]
[399418777,1766337043748,-1500.0,0.00014795,2]
[399418779,1766337043758,-1500.0,0.00014795,2]
[399418781,1766337043768,-458.13934182,0.00014795,2]
[399418783,1766337043780,-333.84919005,0.00014795,2]
[399419140,1766337046896,-884.02063198,0.00014795,2]
[399419147,1766337046950,-375.99607583,0.00014795,2]
[399419149,1766337046960,-1500.0,0.00014795,2]
[399419151,1766337046970,-919.81865669,0.00014795,2]
[399419153,1766337046980,-1430.03574548,0.00014795,2]
[399419155,1766337046990,-1500.0,0.00014795,2]
[399419157,1766337047000,-505.16314018,0.00014795,2]
[399419159,1766337047011,-1500.0,0.00014795,2]
[399419162,1766337047022,-789.16006563,0.00014795,2]
[399419164,1766337047032,-1500.0,0.00014795,2]
[399419166,1766337047042,-1500.0,0.00014795,2]
[399419168,1766337047054,-1500.0,0.00014795,2]
[399419170,1766337047065,-1500.0,0.00014795,2]
[399419172,1766337047075,-1500.0,0.00014795,2]
[399419174,1766337047086,-1630.57816555,0.00014795,2]
[399419176,1766337047096,-341.59113556,0.00014795,2]
[399420256,1766337114603,150.0,7.84e-05,2]
[399420257,1766337115062,150.0,8.213e-05,2]
[399420258,1766337115477,150.0,8.586e-05,2]
[399420283,1766337188262,150.0,7.983e-05,2]
[399420284,1766337188674,150.0,8.364e-05,2]
[399420286,1766337189952,304.831541,0.00030137,120]
[399420325,1766337259594,150.0,8.041e-05,2]
[399420326,1766337260458,150.0,8.424e-05,2]
[399420387,1766337329070,150.0,7.864e-05,2]
[399420388,1766337329157,150.0,8.238e-05,2]
[399420389,1766337329982,150.0,8.613e-05,2]
[399420390,1766337331966,172.0,0.00027666,120]
[399420407,1766337400049,150.0,7.872e-05,2]
[399420414,1766337400714,150.0,8.247e-05,2]
[399420418,1766337400936,150.0,8.622e-05,2]
[399420544,1766337508101,185.4102072,0.00032876,60]
[399420566,1766337707226,178.733,8.546e-05,2]
[399420634,1766337756963,200.0,0.0001,10]
[399420635,1766337757333,260.71,0.0001,10]
[399420642,1766337793707,160.931994,0.00028767,60]
[399420703,1766337852964,12437.8332008,8.029e-05,2]
[399420736,1766337889806,1000.62981357,0.00032876,60]
[399420922,1766338123610,7289.92,0.00032877,60]
[399420945,1766338172012,187877.74621608,8.62e-05,2]
[399420979,1766338231642,-542.0,8.715e-05,2]
[399420981,1766338231652,-360.29983857,8.717e-05,2]
[399420982,1766338231661,-114.42890215,8.719e-05,2]
[399420984,1766338231673,-1085.57109785,8.719e-05,2]
[399420985,1766338231686,-300.0,8.892e-05,2]
[399420986,1766338231695,-300.0,8.892e-05,2]
[399420987,1766338231705,-300.0,8.892e-05,2]
[399420988,1766338231714,-300.0,8.892e-05,2]
[399420989,1766338231724,-1200.0,8.892e-05,2]
[399420990,1766338231733,-300.0,8.893e-05,2]
[399420992,1766338231743,-300.0,8.893e-05,2]
[399420993,1766338231752,-300.0,8.893e-05,2]
[399420994,1766338231762,-300.0,8.893e-05,2]
[399420995,1766338231771,-300.0,8.893e-05,2]
[399420996,1766338231780,-300.0,8.893e-05,2]
[399420997,1766338231790,-300.0,8.893e-05,2]
[399420998,1766338231800,-300.0,8.893e-05,2]
[399420999,1766338231809,-300.0,8.893e-05,2]
[399421000,1766338231819,-300.0,8.893e-05,2]
[399421001,1766338231828,-300.0,8.893e-05,2]
[399421002,1766338231838,-212.63766749,8.893e-05,2]
[399421003,1766338231854,-87.36233251,8.893e-05,2]
[399421004,1766338231863,-300.0,8.893e-05,2]
[399421005,1766338231872,-300.0,8.893e-05,2]
[399421006,1766338231881,-300.0,8.893e-05,2]
[399421007,1766338231891,-600.0,8.893e-05,2]
[399421008,1766338231900,-720.0,9.783e-05,2]
[399421009,1766338231909,-2160.0,9.839e-05,2]
[399421010,1766338231919,-1362.0,9.839e-05,2]
[399421011,1766338231928,-415.0,9.839e-05,2]
[399421012,1766338231938,-415.0,9.839e-05,2]
[399421013,1766338231947,-425.15380951,0.00010717,2]
[399421014,1766338231957,-864.0,0.00010761,2]
[399421015,1766338231967,-305.77,0.00010958,2]
[399421016,1766338231977,-826.95,0.00010958,2]
[399421017,1766338231987,-826.95,0.00010958,2]
[399421018,1766338231996,-826.95,0.00010958,2]
[399421019,1766338232005,-826.95,0.00010958,2]
[399421020,1766338232014,-826.95,0.00010958,2]
[399421021,1766338232024,-826.95,0.00010958,2]
[399421022,1766338232033,-826.95,0.00010958,2]
[399421024,1766338232043,-826.95,0.00010958,2]
[399421025,1766338232052,-826.95,0.00010958,2]
[399421026,1766338232062,-826.95,0.00010958,2]
[399421027,1766338232071,-826.95,0.00010958,2]
[399421028,1766338232080,-826.95,0.00010958,2]
[399421029,1766338232090,-826.95,0.00010958,2]
[399421030,1766338232099,-826.95,0.00010958,2]
[399421031,1766338232109,-826.95,0.00010958,2]
[399421032,1766338232119,-826.95,0.00010958,2]
[399421033,1766338232135,-826.95,0.00010958,2]
[399421034,1766338232146,-826.95,0.00010958,2]
[399421035,1766338232155,-826.95,0.00010958,2]
[399421036,1766338232164,-826.95,0.00010958,2]
[399421037,1766338232175,-826.95,0.00010958,2]
[399421038,1766338232186,-826.95,0.00010958,2]
[399421039,1766338232196,-826.95,0.00010958,2]
[399421040,1766338232206,-827.01409975,0.00010958,2]
[399421041,1766338232216,-305.77,0.00011232,2]
[399421042,1766338232226,-1041.66666667,0.00011466,2]
[399421043,1766338232235,-160.0,0.00011466,2]
[399421044,1766338232245,-305.78,0.00011506,2]
[399421045,1766338232254,-250.0,0.00011515,2]
[399421046,1766338232263,-1000.0,0.00011837,2]
[399421047,1766338232272,-424.0,0.000119,2]
[399421048,1766338232282,-497.67412467,0.0001221,2]
[399421049,1766338232291,-1252.74004813,0.00012395,2]
[399421050,1766338232301,-490.00778045,0.00012717,2]
[399421051,1766338232311,-2160.0,0.00012839,2]
[399421052,1766338232320,-1362.0,0.00012839,2]
[399421053,1766338232329,-415.0,0.00012839,2]
[399421054,1766338232338,-415.0,0.00012839,2]
[399421055,1766338232347,-1172.07594632,0.00012913,2]
[399421056,1766338232359,-766.20070357,0.00012999,2]
[399421057,1766338232368,-1000.0,0.00013021,2]
[399421058,1766338232377,-244.0,0.00013021,2]
[399421059,1766338232387,-1278.81283027,0.00013069,2]
[399421060,1766338232396,-506.12758304,0.00013273,2]
[399421061,1766338232405,-500.0,0.00013273,2]
[399421062,1766338232415,-500.0,0.00013273,2]
[399421063,1766338232424,-500.0,0.00013273,2]
[399421064,1766338232433,-500.0,0.00013273,2]
[399421065,1766338232443,-500.0,0.00013273,2]
[399421066,1766338232452,-500.0,0.00013273,2]
[399421067,1766338232462,-500.0,0.00013273,2]
[399421068,1766338232471,-500.0,0.00013273,2]
[399421069,1766338232480,-500.0,0.00013273,2]
[399421070,1766338232490,-500.0,0.00013273,2]
[399421071,1766338232499,-500.0,0.00013273,2]
[399421072,1766338232508,-500.0,0.00013273,2]
[399421073,1766338232518,-500.0,0.00013273,2]
[399421074,1766338232527,-500.0,0.00013273,2]
[399421075,1766338232537,-500.0,0.00013273,2]
[399421076,1766338232546,-500.0,0.00013273,2]
[399421077,1766338232556,-500.0,0.00013273,2]
[399421078,1766338232566,-500.0,0.00013273,2]
[399421079,1766338232576,-500.0,0.00013273,2]
[399421080,1766338232585,-500.0,0.00013273,2]
[399421081,1766338232594,-601.60955947,0.00013273,2]
[399421082,1766338232604,-500.0,0.00013273,2]
[399421083,1766338232613,-500.0,0.00013273,2]
[399421084,1766338232623,-500.0,0.00013273,2]
[399421085,1766338232633,-500.0,0.00013273,2]
[399421086,1766338232642,-500.0,0.00013273,2]